bitfinex/quotes_SOLUSD_20250818
["timestamp","ask_amount","ask_price","bid_price","bid_amount"]
[1755555477286,4.8311246,185.07,185.06,38.52]
[1755555477482,4.8311246,185.07,185.06,39.19]
[1755555478508,4.8311246,185.07,185.06,0.67]
[1755555478711,4.8311246,185.07,185.06,39.19]
[1755555478890,4.8311246,185.07,185.06,38.52]
[1755555479208,4.8311246,185.07,185.06,43.92361127]
[1755555479585,4.8311246,185.07,185.06,38.52]
[1755555480786,4.8311246,185.07,185.05,6.07387096]
[1755555481004,4.8311246,185.06,185.04,38.55]
[1755555481203,4.8311246,185.05,185.04,38.55]
[1755555481390,4.8311246,185.05,185.04,39.22]
[1755555481793,4.8311246,185.05,185.04,18.23]
[1755555481997,9.4372357,185.05,185.04,0.03]
[1755555484911,8.8672357,185.05,185.04,0.03]
[1755555485088,4.8311246,185.05,185.04,0.03]
[1755555485294,4.8311246,185.05,185.04,0.7]
[1755555485694,4.8311246,185.05,185.04,0.03]
[1755555490640,46.50734017,185.05,185.04,0.03]
[1755555490803,54.17548776,185.05,185.04,0.03]
[1755555491920,53.60548776,185.05,185.04,0.03]
[1755555492121,38.49927219,185.05,185.04,0.03]
[1755555492711,12.49927219,185.05,185.04,0.03]
[1755555492915,4.8311246,185.05,185.04,0.69]
[1755555494130,4.8311246,185.05,185.04,6.09423692]
[1755555496702,4.8311246,185.05,185.04,0.69]
[1755555497628,4.8311246,185.05,185.04,0.03]
[1755555500512,8.86778901,185.05,185.04,0.03]
[1755555501607,4.8311246,185.05,185.04,0.03]
[1755555503043,35.43829329,185.05,185.04,0.03]
[1755555503207,59.57991174,185.05,185.04,0.03]
[1755555503829,59.58021118,185.05,185.04,0.03]
[1755555505613,59.57925635,185.05,185.04,0.03]
[1755555506617,54.17531148,185.05,185.04,0.03]
[1755555507542,50.13879818,185.05,185.04,0.03]
[1755555507742,54.17424297,185.05,185.04,0.03]
[1755555507933,53.60424297,185.05,185.04,0.03]
[1755555508232,30.8311246,185.05,185.04,0.69]
[1755555508535,4.8311246,185.05,185.04,0.69]
[1755555509224,4.8311246,185.05,185.04,0.03]
[1755555509819,4.8311246,185.05,185.04,0.69]
[1755555510458,4.8911246,185.07,185.04,0.69]
[1755555511125,4.8311246,185.06,185.04,0.69]
[1755555511531,0.06,185.07,185.05,5.40394487]
[1755555511836,0.06,185.07,185.06,0.66]
[1755555513446,4.8911246,185.07,185.06,6.06365286]
[1755555516923,0.06,185.07,185.06,6.06365286]
[1755555517344,0.06,185.07,185.06,24.26365286]
[1755555517548,4.8911246,185.07,185.06,24.26365286]
[1755555519818,4.8911246,185.07,185.06,23.60365286]
[1755555520330,4.8911246,185.07,185.06,24.31365286]
[1755555520532,5.4611246,185.07,185.06,18.2]
[1755555520839,8.93251274,185.07,185.06,18.2]
[1755555521219,12.56696543,185.07,185.06,18.2]
[1755555521422,8.93251274,185.07,185.06,18.2]
[1755555521632,12.56696543,185.07,185.06,18.2]
[1755555521825,9.50251274,185.07,185.04,0.03]
[1755555522031,4.8311246,185.05,185.04,0.03]
[1755555522244,8.87251274,185.05,185.04,0.74]
[1755555523227,8.87251274,185.05,185.04,0.03]
[1755555525127,18.4809103,185.05,185.04,0.03]
[1755555525327,29.95267318,185.05,185.04,0.03]
[1755555525653,33.58712587,185.05,185.04,0.03]
[1755555525955,33.59072245,185.05,185.04,0.03]
[1755555526548,38.13168376,185.05,185.04,0.03]
[1755555526746,15.10621557,185.04,185.03,0.03]
[1755555526944,38.13197581,185.04,185.03,0.03]
[1755555527252,42.96310041,185.04,185.03,0.03]
[1755555527449,38.42195598,185.04,185.02,0.03]
[1755555527640,51.27887083,185.03,185.02,0.03]
[1755555527836,60.94112003,185.03,185.02,0.03]
[1755555528356,71.216211,185.03,185.02,0.03]
[1755555528554,72.07112345,185.03,185.02,0.03]
[1755555528851,72.07112345,185.03,185.01,0.03]
[1755555528852,24.76846477,185.02,185.01,0.03]
[1755555529050,26.0,185.0,184.87,13.52273903]
[1755555529262,81.53608189,185.0,184.93,0.71]
[1755555529758,38.51037889,185.0,184.97,0.71]
[1755555530067,76.99037889,185.0,184.93,4.8311246]
[1755555530272,76.99037889,185.0,184.97,0.71]
[1755555530634,76.99037889,185.0,184.96,0.71]
[1755555531346,76.99037889,185.0,184.99,0.74]
[1755555531536,4.8311246,185.0,184.99,0.74]
[1755555533154,64.48,185.02,184.99,0.74]
[1755555533155,3.63325527,185.01,184.99,0.03]
[1755555533327,4.8311246,185.0,184.99,0.03]
[1755555533533,8.86771691,185.0,184.99,0.03]
[1755555533734,9.43771691,185.0,184.99,0.03]
[1755555534134,8.86771691,185.0,184.99,0.03]
[1755555534960,10.23653,185.0,184.99,0.03]
[1755555535166,29.94903984,185.0,184.99,0.03]
[1755555535367,59.58229511,185.0,184.99,0.03]
[1755555536229,98.06229511,185.0,184.99,0.03]
[1755555536861,72.06229511,185.0,184.99,0.03]
[1755555537067,15.10621557,184.99,184.95,0.03]
[1755555537249,28.17688971,184.99,184.95,0.03]
[1755555538950,33.58258731,184.99,184.95,0.03]
[1755555539733,41.10621557,184.96,184.95,0.03]
[1755555539946,92.10688971,184.96,184.95,0.03]
[1755555540153,92.67688971,184.96,184.95,0.03]
[1755555540538,92.10688971,184.96,184.95,0.03]
[1755555541082,97.5134641,184.96,184.95,0.03]
[1755555541243,15.10621557,184.95,184.93,0.03]
[1755555541575,61.80837313,184.96,184.91,0.2]
[1755555541576,41.10621557,184.92,184.91,0.2]
[1755555541780,19.93734017,184.9,184.89,0.2]
[1755555541943,69.3311246,184.9,184.89,0.91]
[1755555542342,64.5,184.9,184.89,0.91]
[1755555542556,69.3311246,184.9,184.89,0.91]
[1755555542779,69.3311246,184.9,184.89,0.2]
[1755555543741,64.5,184.9,184.89,0.91]
[1755555543941,69.3311246,184.9,184.89,0.91]
[1755555544143,69.3311246,184.9,184.89,0.2]
[1755555544583,90.41566899,184.9,184.89,0.2]
[1755555544753,98.05531513,184.9,184.89,0.2]
[1755555545082,72.05531513,184.9,184.89,0.2]
[1755555546188,15.10621557,184.89,184.86,0.03]
[1755555546348,23.95748134,184.89,184.86,0.03]
[1755555546949,24.52748134,184.89,184.86,0.03]
[1755555547175,68.22610268,184.89,184.86,0.03]
[1755555547546,63.39497808,184.89,184.86,0.03]
[1755555547746,68.22610268,184.89,184.86,0.03]
[1755555547976,43.6911246,184.89,184.88,0.73]
[1755555548872,58.79734017,184.89,184.88,0.03]
[1755555549076,64.20596151,184.89,184.88,0.03]
[1755555549250,68.78519491,184.89,184.88,0.03]
[1755555549671,64.20596151,184.89,184.88,0.03]
[1755555549986,68.78519491,184.89,184.88,0.03]
[1755555550281,64.77596151,184.89,184.88,0.03]
[1755555550774,64.20596151,184.89,184.88,0.03]
[1755555551663,64.20596151,184.89,184.86,0.03]
[1755555551664,26.0,184.87,184.86,0.03]
[1755555551975,43.7111246,184.87,184.86,0.03]
[1755555552491,26.0,184.85,184.84,0.03]
[1755555552788,69.6911246,184.85,184.84,0.73]
[1755555553583,43.6911246,184.85,184.84,0.73]
[1755555554155,38.86,184.85,184.84,0.73]
[1755555554364,43.6911246,184.85,184.84,0.73]
[1755555554559,4.8311246,184.85,184.84,6.14008439]
[1755555554767,15.78738964,184.94,184.84,6.14008439]
[1755555554768,4.8311246,184.86,184.84,6.14008439]
[1755555554967,4.1111246,184.86,184.85,0.7]
[1755555555253,20.51392147,184.93,184.85,0.7]
[1755555555254,4.8311246,184.87,184.86,5.40949908]
[1755555555464,30.8311246,184.87,184.86,0.7]
[1755555556655,4.8311246,184.87,184.86,6.10949908]
[1755555561500,4.8311246,184.87,184.84,0.73]
[1755555561697,4.8311246,184.85,184.84,0.73]
[1755555562766,4.8311246,184.85,184.84,6.13998624]
[1755555563898,4.8311246,184.87,184.84,6.13998624]
[1755555564066,4.8311246,184.87,184.84,5.43998624]
[1755555564266,4.8311246,184.86,184.85,6.10979172]
[1755555564487,4.8311246,184.86,184.85,5.40979172]
[1755555565108,4.8311246,184.86,184.85,6.10979172]
[1755555567999,4.8311246,184.86,184.85,6.13979172]
[1755555568779,4.8311246,184.86,184.85,5.43979172]
[1755555568992,39.43,184.89,184.85,0.03]
[1755555569183,4.8311246,184.86,184.85,0.03]
[1755555569587,4.8311246,184.86,184.85,5.43977989]
[1755555571676,39.43,184.88,184.85,5.43977989]
[1755555571897,4.8311246,184.86,184.85,0.03]
[1755555572401,4.8311246,184.86,184.85,0.73]
[1755555574097,4.8311246,184.86,184.85,6.13979172]
[1755555575079,38.76,184.88,184.85,6.13979172]
[1755555575284,0.06,184.9,184.85,6.13979172]
[1755555575507,0.06,184.9,184.87,4.8311246]
[1755555575709,0.06,184.9,184.86,5.5311246]
[1755555575925,0.06,184.9,184.86,4.8311246]
[1755555576219,0.06,184.9,184.88,5.40891389]
[1755555576585,0.06,184.9,184.89,0.7]
[1755555578083,0.06,184.9,184.89,6.10862134]
[1755555578720,0.06,184.9,184.89,5.40862134]
[1755555579021,0.06,184.9,184.89,6.10862134]
[1755555579413,0.06,184.9,184.89,5.40862134]
[1755555579713,4.8911246,184.9,184.89,5.40862134]
[1755555581107,4.8911246,184.9,184.89,6.10862134]
[1755555582593,0.06,184.9,184.89,24.30862134]
[1755555584225,0.06,184.9,184.89,29.13974594]
[1755555584520,1e-08,184.9,184.89,29.13974594]
[1755555585806,1e-08,184.9,184.89,44.24596151]
[1755555587331,1e-08,184.9,184.89,29.13974594]
[1755555588213,1e-08,184.9,184.89,24.30862134]
[1755555588398,1e-08,184.9,184.89,29.13974594]
[1755555589229,1e-08,184.9,184.89,24.30862134]
[1755555589421,1e-08,184.9,184.89,63.04862134]
[1755555589622,1e-08,184.9,184.89,63.02862134]
[1755555590327,1e-08,184.9,184.89,67.85974594]
[1755555591501,1e-08,184.9,184.89,82.96596151]
[1755555591697,0.06,184.92,184.9,15.10621557]
[1755555591698,1e-08,184.92,184.9,15.10621557]
[1755555591901,1e-08,184.92,184.91,19.93734017]
[1755555592133,1e-08,184.92,184.91,20.63734017]
[1755555593048,1e-08,184.92,184.91,44.24537651]
[1755555594914,1e-08,184.92,184.91,82.92537651]
[1755555596447,1e-08,184.94,184.92,15.10621557]
[1755555596646,1e-08,184.94,184.93,58.59734017]
[1755555596938,1e-08,184.94,184.93,76.79734017]
[1755555597113,1e-08,184.94,184.93,77.49734017]
[1755555597311,1e-08,184.94,184.93,82.90479163]
[1755555597716,1e-08,184.94,184.93,85.07181563]
[1755555599518,0.06,184.98,184.94,15.10621557]
[1755555599840,0.06,184.98,184.97,4.8311246]
[1755555600009,0.06,184.98,184.97,43.4711246]
[1755555600205,0.06,184.98,184.97,38.64]
[1755555600614,0.72,184.98,184.97,38.64]
[1755555600812,0.06,184.98,184.97,38.64]
[1755555601115,0.06,184.98,184.97,39.34]
[1755555601418,0.06,184.98,184.97,44.74628209]
[1755555602021,0.06,184.98,184.97,44.04628209]
[1755555603130,0.06,184.98,184.97,62.24628209]
[1755555604010,0.72,184.98,184.97,62.24628209]
[1755555604438,5.5511246,184.98,184.94,5.40715907]
[1755555604638,4.8311246,184.96,184.95,38.62]
[1755555604835,5.4911246,184.96,184.94,44.02715907]
[1755555605438,0.72,184.98,184.94,57.54505676]
[1755555605740,0.06,184.98,184.95,5.5311246]
[1755555606046,0.06,184.98,184.96,38.7]
[1755555606641,0.72,184.98,184.96,38.7]
[1755555606935,0.72,184.98,184.94,19.62505676]
[1755555607142,4.8311246,184.95,184.94,5.40715907]
[1755555607313,0.66,184.97,184.94,5.40715907]
[1755555607518,0.66,184.97,184.93,5.40745146]
[1755555607838,5.4911246,184.97,184.93,19.60608013]
[1755555609028,0.7,184.96,184.93,18.92608013]
[1755555609539,0.7,184.96,184.95,5.40686672]
[1755555609746,4.8311246,184.96,184.93,5.40745146]
[1755555609908,4.8311246,184.95,184.93,5.40745146]
[1755555610315,5.5311246,184.95,184.93,5.40745146]
[1755555610516,4.8311246,184.95,184.93,5.40745146]
[1755555610824,0.7,184.96,184.93,5.40745146]
[1755555611022,4.8311246,184.96,184.93,6.08745146]
[1755555611226,4.8311246,184.96,184.93,5.40745146]
[1755555611434,5.5311246,184.96,184.93,5.40745146]
[1755555613950,0.76,184.98,184.93,6.08745146]
[1755555614133,4.8311246,184.97,184.93,6.08745146]
[1755555614329,0.7,184.97,184.93,19.60608013]
[1755555614528,4.8311246,184.97,184.94,0.68]
[1755555614730,4.8911246,184.98,184.95,0.68]
[1755555614944,4.8911246,184.98,184.95,18.88]
[1755555615249,0.06,184.98,184.96,0.68]
[1755555615642,5.5911246,184.98,184.95,56.84]
[1755555616144,5.5911246,184.98,184.96,5.40657439]
[1755555616633,5.5311246,184.97,184.96,5.40657439]
[1755555616949,4.8911246,184.98,184.96,5.40657439]
[1755555617140,5.5911246,184.98,184.96,5.40657439]
[1755555618140,0.06,184.98,184.96,5.40657439]
[1755555618346,0.06,184.98,184.96,6.08657439]
[1755555618843,0.06,184.98,184.96,23.60657439]
[1755555619046,0.06,184.98,184.97,0.68]
[1755555619954,0.06,184.98,184.97,39.3]
[1755555620134,0.06,184.98,184.97,44.70628209]
[1755555620334,0.06,184.98,184.97,49.53740669]
[1755555620753,0.06,184.98,184.97,44.70628209]
[1755555621433,0.06,184.98,184.97,62.22628209]
[1755555622653,5.5911246,184.98,184.97,18.2]
[1755555623029,5.5911246,184.98,184.96,38.62]
[1755555623231,5.5311246,184.97,184.95,5.40678675]
[1755555623450,5.5311246,184.96,184.95,5.40678675]
[1755555624461,5.5311246,184.96,184.94,44.02711244]
[1755555624662,0.7,184.95,184.94,44.02711244]
[1755555624832,5.5311246,184.95,184.94,44.02711244]
[1755555625660,0.06,184.98,184.94,44.02711244]
[1755555625853,4.8311246,184.96,184.94,44.70711244]
[1755555626054,0.76,184.98,184.94,44.70711244]
[1755555626241,4.8311246,184.96,184.94,44.70711244]
[1755555627158,4.8311246,184.96,184.94,44.02711244]
[1755555628758,4.8311246,184.96,184.94,44.70711244]
[1755555628958,4.8311246,184.97,184.95,0.68]
[1755555629160,0.06,184.98,184.96,39.24]
[1755555630855,0.06,184.98,184.97,5.40628209]
[1755555631059,4.8911246,184.98,184.97,5.40628209]
[1755555631366,5.5911246,184.98,184.97,5.40628209]
[1755555632167,4.8911246,184.98,184.97,5.40628209]
[1755555632375,0.06,184.98,184.97,5.40628209]
[1755555632553,4.8911246,184.98,184.97,5.40628209]
[1755555634867,5.5811246,184.98,184.97,5.40628209]
[1755555635043,4.8911246,184.98,184.97,5.40628209]
[1755555635444,4.8911246,184.98,184.96,62.16647691]
[1755555635764,4.8311246,184.97,184.96,62.16647691]
[1755555636855,4.8311246,184.97,184.96,62.84647691]
[1755555639645,0.06,184.98,184.96,62.84647691]
[1755555639966,0.06,184.98,184.97,20.63734017]
[1755555640172,0.06,184.98,184.97,15.80621557]
[1755555640356,0.06,184.98,184.97,20.63734017]
[1755555640551,1e-08,184.98,184.97,25.52846517]
[1755555641152,1e-08,184.98,184.97,30.93474726]
[1755555641349,1e-08,184.98,184.97,26.10362266]
[1755555641550,1e-08,184.98,184.97,30.93474726]
[1755555642548,1e-08,184.98,184.97,26.10362266]
[1755555642868,1e-08,184.98,184.97,69.47474726]
[1755555643753,1e-08,184.98,184.97,30.93474726]
[1755555643959,1e-08,184.98,184.97,69.47474726]
[1755555644562,1e-08,184.98,184.97,87.67474726]
[1755555647576,1e-08,184.98,184.97,82.84362266]
[1755555647957,1e-08,184.98,184.97,87.67474726]
[1755555650383,0.06,185.0,184.99,33.30621556]
[1755555650680,0.06,185.0,184.99,71.82621556]
[1755555650861,0.06,185.0,184.99,72.52621556]
[1755555651063,0.06,185.0,184.99,77.35733956]
[1755555651962,0.06,185.0,184.99,82.76303716]
[1755555652584,0.06,185.0,184.99,28.43682159]
[1755555652788,0.06,185.0,184.99,62.12569759]
[1755555652983,0.06,185.0,184.99,67.01682259]
[1755555653291,0.06,185.0,184.99,62.12569759]
[1755555654390,0.06,185.0,184.99,62.82569759]
[1755555654592,0.06,185.0,184.99,62.12569759]
[1755555658769,0.74,185.0,184.99,62.12569759]
[1755555658969,0.06,185.0,184.99,62.12569759]
[1755555659604,0.06,185.0,184.99,62.82569759]
[1755555660314,5.5711246,185.0,184.99,5.4056976]
[1755555660500,5.5711246,185.0,184.97,5.40623758]
[1755555660704,4.8311246,184.98,184.97,5.40623758]
[1755555660874,5.5111246,184.98,184.97,43.92623758]
[1755555661697,5.5111246,184.98,184.97,38.52]
[1755555662781,5.5111246,184.98,184.96,0.03]
[1755555662983,5.5111246,184.97,184.96,0.03]
[1755555665310,4.8311246,184.97,184.96,0.03]
[1755555668244,4.8311246,184.97,184.96,18.22999999]
[1755555668397,5.5511246,184.97,184.96,23.63657438]
[1755555668604,5.5511246,184.97,184.96,18.22999999]
[1755555668914,5.5511246,184.97,184.96,56.74999999]
[1755555669440,4.8311246,184.97,184.96,62.83657438]
[1755555669930,5.5511246,184.97,184.96,56.74999999]
[1755555670418,5.5511246,184.97,184.96,38.55]
[1755555671319,4.8311246,184.97,184.96,43.95657439]
[1755555672098,5.5511246,184.97,184.96,38.55]
[1755555674026,4.8311246,184.97,184.96,38.55]
[1755555674212,4.8311246,184.97,184.96,56.74999999]
[1755555674414,5.5511246,184.97,184.96,56.74999999]
[1755555675205,0.72,184.97,184.96,62.15657438]
[1755555675407,4.8311246,184.97,184.96,62.15657438]
[1755555676311,4.8311246,184.97,184.96,56.74999999]
[1755555678334,4.8311246,184.97,184.96,62.83644214]
[1755555679210,4.8311246,184.97,184.96,62.15644214]
[1755555680513,4.8311246,184.97,184.96,62.83644214]
[1755555681333,4.8311246,184.97,184.96,62.15644214]
[1755555681637,0.72,184.97,184.96,56.74999999]
[1755555681808,4.8311246,184.97,184.96,56.74999999]
[1755555682331,4.8311246,184.97,184.96,62.15657438]
[1755555684123,4.8311246,184.97,184.96,56.74999999]
[1755555684654,5.5511246,184.97,184.96,56.74999999]
[1755555685141,5.5511246,184.97,184.96,18.22999999]
[1755555685948,5.5511246,184.97,184.96,0.03]
[1755555686413,4.8311246,184.97,184.96,0.03]
[1755555687645,5.5511246,184.97,184.96,0.03]
[1755555688005,0.06,184.98,184.96,0.03]
[1755555688210,4.8311246,184.97,184.96,0.03]
[1755555688410,4.8311246,184.97,184.96,38.55]
[1755555689547,4.8311246,184.97,184.96,44.63657439]
[1755555689857,4.8311246,184.97,184.96,43.95657439]
[1755555690211,4.8311246,184.97,184.96,38.55]
[1755555690413,4.8311246,184.97,184.96,43.95657439]
[1755555690642,4.8311246,184.97,184.96,44.63657439]
[1755555691644,0.06,184.98,184.96,44.63657439]
[1755555691842,4.8311246,184.97,184.96,62.15657438]
[1755555692443,4.8311246,184.97,184.96,62.83657438]
[1755555697756,4.8311246,184.97,184.96,62.15657438]
[1755555698167,5.4911246,184.97,184.96,56.74999999]
[1755555700359,4.8311246,184.97,184.96,56.74999999]
[1755555701752,0.06,184.98,184.96,56.74999999]
[1755555701951,0.06,184.98,184.97,0.7]
[1755555702248,0.06,184.98,184.97,6.10628209]
[1755555702439,0.06,184.98,184.97,26.04362226]
[1755555702960,0.06,184.98,184.97,21.21249766]
[1755555703138,0.06,184.98,184.97,26.04362226]
[1755555703460,0.06,184.98,184.97,21.21249766]
[1755555703651,0.06,184.98,184.97,26.04362226]
[1755555704945,0.06,184.98,184.97,6.10628209]
[1755555705453,0.06,184.98,184.97,44.60628209]
[1755555705856,0.06,184.98,184.97,49.43740669]
[1755555707372,0.06,184.98,184.97,5.40628209]
[1755555707552,0.06,184.98,184.97,43.90628209]
[1755555707746,5.5511246,184.98,184.96,5.43650963]
[1755555707950,5.4911246,184.97,184.96,5.43650963]
[1755555708152,5.4911246,184.97,184.96,43.93657439]
[1755555708663,5.4911246,184.97,184.96,38.53]
[1755555708994,5.4911246,184.97,184.96,43.93657439]
[1755555710466,4.8311246,184.97,184.96,43.93657439]
[1755555710955,4.8311246,184.97,184.96,38.53]
[1755555711545,5.4911246,184.97,184.96,38.53]
[1755555713089,5.4911246,184.97,184.96,0.03]
[1755555713792,4.8311246,184.97,184.96,0.03]
[1755555714559,5.4911246,184.97,184.96,0.03]
[1755555715492,0.66,184.97,184.96,0.03]
[1755555715673,0.06,184.98,184.96,0.73]
[1755555715875,0.06,184.98,184.97,43.3311246]
[1755555716390,0.06,184.98,184.97,44.0311246]
[1755555716587,0.06,184.98,184.97,62.2311246]
[1755555716795,0.06,184.98,184.97,57.4]
[1755555717084,0.06,184.98,184.97,67.63740669]
[1755555720362,0.06,184.98,184.97,62.80628209]
[1755555721265,0.06,184.98,184.97,62.10628209]
[1755555721502,0.06,184.98,184.97,23.60628209]
[1755555721693,0.06,184.98,184.97,62.08628209]
[1755555721995,0.06,184.98,184.97,62.78628209]
[1755555722804,0.06,184.98,184.97,67.61740669]
[1755555722985,0.06,184.98,184.97,83.26425046]
[1755555723191,1e-08,184.98,184.97,83.26425046]
[1755555723375,1e-08,184.98,184.97,85.43056946]
[1755555725585,1e-08,184.98,184.97,80.59944486]
[1755555725914,1e-08,184.98,184.97,85.43056946]
[1755555727305,0.06,185.02,185.01,18.13999999]
[1755555727483,0.06,185.02,185.01,56.61999999]
[1755555728896,0.06,185.02,185.01,62.02511322]
[1755555730199,0.06,185.02,185.01,67.55623782]
[1755555730392,0.06,185.02,185.01,62.72511322]
[1755555730707,0.06,185.02,185.01,67.55623782]
[1755555732114,0.06,185.02,185.01,62.72511322]
[1755555732312,0.77,185.02,185.01,62.02511322]
[1755555732496,5.6011246,185.02,185.01,38.48]
[1755555733325,0.77,185.02,185.01,38.48]
[1755555733498,5.6011246,185.02,185.01,38.48]
[1755555737923,5.6011246,185.02,184.99,5.4056976]
[1755555738097,0.06,185.02,185.0,38.48]
[1755555738301,5.5411246,185.01,185.0,38.48]
[1755555738721,0.06,185.02,185.0,39.18]
[1755555739236,0.06,185.02,185.0,57.21999999]
[1755555740105,4.8911246,185.02,185.01,5.40511323]
[1755555740905,0.06,185.02,185.01,43.88511323]
[1755555741308,0.06,185.02,185.01,67.45623782]
[1755555742017,0.06,185.04,185.02,17.97999999]
[1755555742221,0.06,185.04,185.03,43.86452899]
[1755555742408,0.06,185.04,185.03,44.56452899]
[1755555743236,0.06,185.04,185.03,43.86452899]
[1755555746946,0.77,185.04,185.03,43.86452899]
[1755555747122,0.06,185.04,185.03,43.86452899]
[1755555748039,0.06,185.04,185.03,61.84452898]
[1755555750734,0.06,185.04,185.03,62.54452898]
[1755555753841,0.06,185.04,185.03,61.84452898]
[1755555755043,0.06,185.04,185.03,62.54452898]
[1755555755648,0.06,185.04,185.03,67.37565358]
[1755555756535,0.06,185.04,185.03,62.54452898]
[1755555759451,0.06,185.04,185.03,67.37565358]
[1755555759839,0.1,185.06,185.04,17.91999999]
[1755555760150,0.1,185.06,185.05,38.46]
[1755555761654,0.1,185.06,185.05,43.86394487]
[1755555762069,0.1,185.06,185.05,44.56394487]
[1755555762362,0.1,185.06,185.05,49.39506947]
[1755555763443,0.06,185.07,185.06,15.10621557]
[1755555763740,0.06,185.08,185.06,44.5013583]
[1755555763922,0.06,185.08,185.07,59.07734017]
[1755555764127,0.06,185.08,185.07,54.24621557]
[1755555764329,0.06,185.08,185.07,59.07734017]
[1755555764953,1e-08,185.08,185.07,59.07734017]
[1755555765262,1e-08,185.1,185.08,15.10621557]
[1755555765475,1e-08,185.11,185.09,58.91761787]
[1755555765647,1e-08,185.11,185.1,10.23360974]
[1755555765971,1e-08,185.11,185.1,10.93360974]
[1755555766332,1e-08,185.11,185.1,13.09828774]
[1755555767156,1e-08,185.12,185.11,15.10621557]
[1755555767359,1e-08,185.12,185.11,54.24621557]
[1755555767560,1e-08,185.12,185.11,59.07734017]
[1755555767740,1e-08,185.12,185.11,59.61755949]
[1755555767947,1e-08,185.12,185.11,59.07734017]
[1755555768444,1e-08,185.12,185.11,209.69734016]
[1755555768850,1e-08,185.12,185.11,215.09953345]
[1755555771766,1e-08,185.12,185.11,39.12840885]
[1755555771953,1e-08,185.12,185.11,82.37953345]
[1755555773463,1e-08,185.12,185.11,77.54840885]
[1755555773669,1e-08,185.12,185.11,82.37953345]
[1755555775265,1e-08,185.12,185.11,77.54840885]
[1755555775459,1e-08,185.12,185.11,82.37953345]
[1755555776270,1e-08,185.12,185.11,84.54421145]
[1755555777674,0.71,185.16,185.14,17.79999998]
[1755555777978,0.71,185.16,185.15,38.42]
[1755555778557,0.71,185.16,185.15,43.82102619]
[1755555780075,0.77,185.16,185.15,43.82102619]
[1755555780977,5.6011246,185.16,185.14,23.10122978]
[1755555781158,0.71,185.15,185.14,17.69999998]
[1755555781354,5.5411246,185.15,185.14,56.11999998]
[1755555781783,5.5411246,185.15,185.14,38.42]
[1755555781972,5.5411246,185.15,185.14,43.82131792]
[1755555784084,5.5411246,185.15,185.14,5.40131792]
[1755555784284,5.5411246,185.15,185.14,43.82131792]
[1755555786083,5.5411246,185.15,185.14,38.42]
[1755555786383,5.5411246,185.15,185.1,5.40248514]
[1755555786605,0.06,185.16,185.09,5.43269152]
[1755555786606,4.8311246,185.11,185.09,5.43269152]
[1755555786802,5.5411246,185.1,185.09,0.03]
[1755555788711,0.71,185.1,185.09,0.03]
[1755555788896,5.5411246,185.1,185.09,0.03]
[1755555789888,4.8311246,185.1,185.09,0.03]
[1755555790199,4.8311246,185.12,185.09,0.69]
[1755555790412,4.8311246,185.12,185.1,39.08]
[1755555791084,4.8311246,185.12,185.1,38.42]
[1755555791290,4.8311246,185.11,185.1,38.42]
[1755555791694,0.66,185.12,185.1,38.42]
[1755555791886,4.8311246,185.12,185.11,5.40219329]
[1755555792387,0.72,185.16,185.11,6.06219329]
[1755555792587,4.8311246,185.14,185.12,38.42]
[1755555792810,5.4911246,185.14,185.12,38.42]
[1755555793484,0.06,185.16,185.13,0.66]
[1755555793685,4.8911246,185.16,185.14,38.42]
[1755555793893,4.8911246,185.16,185.15,5.40102619]
[1755555794287,0.06,185.16,185.15,6.06102619]
[1755555794503,0.06,185.16,185.15,5.40102619]
[1755555795805,0.06,185.16,185.15,6.06102619]
[1755555796387,0.06,185.16,185.15,10.89215079]
[1755555796582,0.06,185.16,185.15,6.06102619]
[1755555797482,0.06,185.16,185.15,10.89215079]
[1755555797682,0.06,185.18,185.15,54.14327579]